bitfinex-derivatives/quotes_SOLF0:USTF0_20220108
["timestamp","ask_amount","ask_price","bid_price","bid_amount"]
[1641638475041,27.66479,147.95,147.85,153.32841005]
[1641638475340,27.66479,147.95,147.85,114.10841005]
[1641638475540,27.66479,147.95,147.85,97.10841005]
[1641638475740,27.66479,147.95,147.85,93.56841005]
[1641638475941,27.66479,147.95,147.85,57.48841005]
[1641638476239,27.66479,147.95,147.85,43.48841005]
[1641638476643,27.66479,147.95,147.9,136.29038405]
[1641638476842,27.66479,147.95,147.9,133.85038405]
[1641638477343,27.66479,147.95,147.9,93.07038405]
[1641638477543,3.65302684,147.95,147.9,93.07038405]
[1641638478144,39.21744794,148.0,147.99,33.95291148]
[1641638478344,13.88,148.0,147.99,33.95291148]
[1641638478544,9.88,148.0,147.99,20.75291148]
[1641638478744,9.88,148.0,147.91,64.2076]
[1641638478945,4.0,147.99,147.91,64.2076]
[1641638479144,4.0,147.99,147.91,35.2076]
[1641638479345,4.0,147.99,147.92,15.33826272]
[1641638479548,8.0,147.98,147.92,12.55826272]
[1641638479848,8.0,147.98,147.91,33.76586272]
[1641638480445,8.0,147.98,147.91,2.46586272]
[1641638480647,8.0,147.98,147.9,77.25624677]
[1641638480847,8.0,147.98,147.9,44.43624677]
[1641638481349,8.0,147.98,147.9,37.03624677]
[1641638482648,59.90319311,148.0,147.9,37.03624677]
[1641638483049,70.16319311,148.0,147.9,27.03624677]
[1641638483250,74.16319311,148.0,147.9,27.03624677]
[1641638483449,74.16319311,148.0,147.9,21.95624677]
[1641638483949,70.16319311,148.0,147.9,6.85624677]
[1641638484149,70.16319311,148.0,147.92,27.66479]
[1641638484350,74.16319311,148.0,147.92,27.66479]
[1641638484851,74.16319311,148.0,147.92,26.66479]
[1641638485053,70.16319311,148.0,147.92,17.66479]
[1641638485454,70.16319311,148.0,147.92,2.16479]
[1641638485652,10.26,148.0,147.91,60.72299]
[1641638485852,90.0,148.02,148.0,61.77424786]
[1641638486254,90.0,148.02,148.0,53.77424786]
[1641638486455,99.33965436,148.02,148.0,36.55424786]
[1641638486655,99.33965436,148.02,148.0,32.97424786]
[1641638486855,99.33965436,148.02,148.0,14.23424786]
[1641638487054,99.33965436,148.02,148.0,3.81424786]
[1641638487455,99.33965436,148.02,147.97,15.74636934]
[1641638488055,99.33965436,148.02,147.96,27.66479]
[1641638488457,91.65780821,148.02,147.96,27.66479]
[1641638488658,99.33965436,148.02,147.96,24.76479]
[1641638488858,99.33965436,148.02,147.96,10.36479]
[1641638489057,99.33965436,148.02,147.96,2.88479]
[1641638489657,99.33965436,148.02,148.01,119.6661278]
[1641638489858,75.33546121,148.02,148.01,119.6661278]
[1641638490058,75.33546121,148.02,148.01,111.6661278]
[1641638490261,75.33546121,148.02,148.01,95.6661278]
[1641638490661,75.33546121,148.02,148.01,79.6661278]
[1641638490860,27.66479,148.03,148.01,53.0061278]
[1641638491060,10.06,148.03,148.01,19.0061278]
[1641638491261,144.05191181,148.05,148.01,11.0061278]
[1641638491462,88.55847264,148.05,148.01,11.0061278]
[1641638491761,10.08,148.05,147.96,172.46398342]
[1641638492162,10.08,148.05,148.01,27.66479]
[1641638492564,48.86446332,148.07,148.01,27.66479]
[1641638493065,58.74446332,148.07,148.01,27.66479]
[1641638493464,58.74446332,148.07,147.97,6.75835502]
[1641638493664,58.74446332,148.07,147.96,172.46398342]
[1641638493869,58.74446332,148.07,147.96,169.94398342]
[1641638494167,58.74446332,148.07,147.96,197.60877342]
[1641638494570,9.88,148.07,147.96,197.60877342]
[1641638494768,9.88,148.07,147.96,204.36735682]
[1641638494969,9.33809362,148.04,147.96,204.36735682]
[1641638496368,9.33809362,148.04,147.99,27.66479]
[1641638496968,9.33809362,148.04,147.99,4.44479]
[1641638497168,9.33809362,148.04,147.96,176.70256682]
[1641638497369,9.33809362,148.04,147.96,169.94398342]
[1641638497568,9.33809362,148.04,147.96,159.74398342]
[1641638497967,9.33809362,148.04,147.96,136.26398342]
[1641638498169,9.33809362,148.04,147.96,124.32398342]
[1641638498368,27.66479,148.02,147.96,124.32398342]
[1641638499068,16.66515942,148.04,147.96,124.32398342]
[1641638499268,16.66515942,148.04,147.96,113.24398342]
[1641638499469,58.65851661,148.07,147.97,6.75789829]
[1641638499770,58.65851661,148.07,148.01,119.3064546]
[1641638499970,9.88,148.07,148.01,119.3064546]
[1641638500171,9.88,148.07,148.01,114.4064546]
[1641638500370,9.88,148.07,148.02,27.66479]
[1641638501276,9.88,148.07,148.03,15.14746588]
[1641638501673,9.88,148.07,148.03,8.42746588]
[1641638501873,9.88,148.07,148.03,6.14746588]
[1641638502073,79.88526778,148.08,148.02,16.93225588]
[1641638502272,31.66479,148.07,147.99,26.94479]
[1641638502473,31.66479,148.07,147.99,13.62479]
[1641638502674,31.66479,148.07,147.97,27.66479]
[1641638503073,39.66479,148.07,147.97,27.66479]
[1641638503273,35.66479,148.07,147.98,6.75698503]
[1641638503473,4.0,148.05,147.97,19.68479]
[1641638503674,66.5287,148.06,147.93,27.35272894]
[1641638504076,39.66479,148.07,147.93,27.35272894]
[1641638504275,67.32958,148.07,147.96,27.66479]
[1641638504475,9.33701718,148.06,147.96,27.66479]
[1641638505376,13.33701718,148.06,147.96,27.66479]
[1641638505576,9.33701718,148.06,147.96,27.66479]
[1641638505776,13.33701718,148.06,147.96,27.66479]
[1641638506077,8.0,148.05,147.96,27.66479]
[1641638506377,27.66479,148.03,147.96,23.66479]
[1641638506577,13.46385561,148.07,147.97,4.48436821]
[1641638506776,13.46385561,148.07,147.96,19.84915821]
[1641638507178,31.80966655,148.09,147.96,162.90560381]
[1641638507780,7.78385803,148.0,147.96,158.76560381]
[1641638508781,7.78385803,148.0,147.96,205.13834331]
[1641638508984,27.66479,148.07,147.96,195.71834331]
[1641638509883,27.66479,148.07,148.02,119.27192243]
[1641638510685,27.66479,148.07,148.02,108.19192243]
[1641638510885,27.66479,148.07,148.03,103.79192243]
[1641638511083,27.66479,148.07,148.03,94.25192243]
[1641638511285,27.66479,148.07,148.03,47.47192243]
[1641638511487,27.66479,148.07,148.03,41.97192243]
[1641638511685,27.66479,148.07,147.98,12.7]
[1641638511887,16.14643931,148.07,147.98,33.29323185]
[1641638512088,92.59789,148.09,147.98,29.29323185]
[1641638512287,7.338,148.07,147.98,9.19323185]
[1641638512487,7.338,148.07,147.96,100.58193567]
[1641638512693,27.66479,148.02,147.96,43.41883566]
[1641638512887,27.66479,148.02,147.96,8.79883566]
[1641638513188,27.66479,148.02,147.93,2.62032816]
[1641638513388,27.66479,148.02,147.87,6.76201102]
[1641638513589,27.66479,148.02,147.89,107.42203814]
[1641638513787,27.66479,148.02,147.89,96.14203814]
[1641638513991,35.16079,148.02,147.89,60.50203814]
[1641638514188,35.16079,148.02,147.89,45.80203814]
[1641638514389,35.16079,148.02,147.89,11.18203814]
[1641638514588,35.16079,148.02,147.86,58.13971102]
[1641638514789,35.16079,148.02,147.82,4.44648663]
[1641638514988,35.16079,148.02,147.93,119.99175911]
[1641638515188,8.0,148.01,147.93,28.01175911]
[1641638515393,11.78684195,147.95,147.87,27.66479]
[1641638515589,15.44258388,147.97,147.78,55.05905205]
[1641638515791,4.0,147.98,147.8,4.0]
[1641638515990,6.76544212,147.91,147.8,4.0]
[1641638516290,6.76544212,147.91,147.77,48.05905205]
[1641638516492,27.66479,147.88,147.78,31.66479]
[1641638517092,6.49492244,147.81,147.78,31.66479]
[1641638518292,27.66479,147.88,147.78,31.66479]
[1641638518293,35.66479,147.9,147.88,5.88910019]
[1641638520494,35.66479,147.9,147.88,124.96944897]
[1641638521094,35.66479,147.9,147.88,116.96944897]
[1641638521294,10.76956404,147.89,147.67,38.80055404]
[1641638521495,4.0,147.86,147.69,190.48039146]
[1641638521695,12.376,147.86,147.69,190.48039146]
[1641638522097,12.376,147.86,147.68,225.13917569]
[1641638522297,8.376,147.86,147.69,6.76841856]
[1641638522498,27.66479,147.8,147.72,27.66479]
[1641638523298,7.77,147.83,147.73,161.56746331]
[1641638523498,8.376,147.86,147.73,161.56746331]
[1641638523700,51.359,147.9,147.73,161.56746331]
[1641638523899,27.79698409,147.9,147.73,157.56746331]
[1641638524098,4.0,147.86,147.73,157.56746331]
[1641638524300,5.824,147.86,147.84,95.03556931]
[1641638524598,35.66479,147.85,147.84,95.03556931]
[1641638524900,35.66479,147.85,147.84,79.03556931]
[1641638525100,35.66479,147.85,147.73,14.95936392]
[1641638525301,44.20879,147.85,147.73,14.95936392]
[1641638525502,48.20879,147.85,147.73,14.95936392]
[1641638525701,48.20879,147.85,147.73,13.19936392]
[1641638525902,7.7969512,147.76,147.73,4.67936392]
[1641638527102,20.04775216,147.81,147.73,4.67936392]
[1641638527702,8.0,147.8,147.73,4.67936392]
[1641638528503,8.0,147.8,147.75,27.66479]
[1641638528903,8.0,147.8,147.73,4.67936392]
[1641638529106,6.77323219,147.76,147.71,15.10413852]
[1641638529304,8.762,147.76,147.71,5.06413852]
[1641638529702,8.0,147.75,147.7,142.60809939]
[1641638529903,8.0,147.75,147.67,161.11448724]
[1641638530104,6.136,147.75,147.67,157.11448724]
[1641638530505,6.77483825,147.73,147.67,126.19448724]
[1641638530705,6.77483825,147.73,147.67,96.99448724]
[1641638530906,6.77483825,147.73,147.67,45.41448724]
[1641638531105,6.77483825,147.73,147.66,4.2818538]
[1641638531305,8.0,147.72,147.61,126.58809939]
[1641638531505,15.52,147.72,147.62,2.46]
[1641638531808,15.52,147.72,147.61,112.58809939]
[1641638532007,15.52,147.72,147.61,107.14809939]
[1641638532209,15.52,147.72,147.61,86.14809939]
[1641638532407,15.52,147.72,147.6,9.23323219]
[1641638532408,7.7999608,147.7,147.65,27.66479]
[1641638532605,9.3399608,147.7,147.65,27.66479]
[1641638532806,9.3399608,147.7,147.63,27.66479]
[1641638533006,5.80382534,147.75,147.63,12.66479]
[1641638533206,8.0,147.69,147.63,12.66479]
[1641638534309,8.0,147.69,147.63,3.64479]
[1641638534510,8.0,147.69,147.63,1.64479]
[1641638534709,14.77713395,147.69,147.66,75.30679899]
[1641638534909,34.87279,147.7,147.6,21.30958]
[1641638535114,34.87279,147.7,147.6,10.06958]
[1641638535309,34.87279,147.7,147.58,21.64817569]
[1641638535610,4.0,147.67,147.53,63.2911]
[1641638535810,9.428,147.67,147.53,50.2911]
[1641638536010,5.428,147.67,147.53,54.2911]
[1641638536210,6.77851212,147.66,147.53,54.2911]
[1641638536410,6.77851212,147.66,147.53,51.91589]
[1641638536610,27.66479,147.62,147.53,45.91589]
[1641638536812,7.613,147.62,147.53,27.66479]
[1641638538011,8.0,147.61,147.53,27.66479]
[1641638538412,7.8058099,147.59,147.53,27.66479]
[1641638538611,7.8058099,147.59,147.58,17.50479]
[1641638539012,27.66479,147.65,147.58,12.58462691]
[1641638539212,27.66479,147.65,147.58,4.58462691]
[1641638539615,3.60533611,147.65,147.58,4.58462691]
[1641638540214,10.38430774,147.65,147.58,4.58462691]
[1641638541114,6.77897163,147.65,147.61,56.56786879]
[1641638541314,3.28853239,147.67,147.61,56.56786879]
[1641638541513,64.1036,147.69,147.61,56.56786879]
[1641638541714,64.1036,147.69,147.63,56.56786879]
[1641638542117,10.12,147.7,147.63,42.76786879]
[1641638542314,6.77805267,147.68,147.63,26.76786879]
[1641638542514,6.77805267,147.68,147.66,4.60727473]
[1641638542715,6.77805267,147.68,147.63,18.38667401]
[1641638542916,10.12,147.7,147.63,14.52667401]
[1641638543617,10.12,147.7,147.64,4.72923783]
[1641638544219,10.12,147.7,147.61,27.66479]
[1641638545218,8.0,147.69,147.61,21.82479]
[1641638545418,8.0,147.69,147.61,11.58479]
[1641638545619,8.0,147.69,147.61,6.58479]
[1641638545820,8.0,147.69,147.61,3.58479]
[1641638546621,8.0,147.69,147.64,27.66479]
[1641638548324,8.0,147.69,147.61,3.58479]
[1641638549324,8.0,147.69,147.59,27.66479]
[1641638549325,8.0,147.69,147.62,3.08308591]
[1641638549925,14.77759328,147.69,147.62,3.08308591]
[1641638550125,14.77759328,147.69,147.62,2.08308591]
[1641638550326,14.77759328,147.69,147.6,2.08308591]
[1641638550626,27.66479,147.66,147.6,2.08308591]
[1641638551027,27.66479,147.66,147.59,1.39269316]
[1641638551229,9.36400886,147.63,147.55,18.20804947]
[1641638551429,17.26800886,147.63,147.55,6.36804947]
[1641638551828,17.26800886,147.63,147.52,65.78724947]
[1641638552228,8.0,147.62,147.52,65.78724947]
[1641638552629,27.66479,147.61,147.53,27.66479]
[1641638553030,27.66479,147.61,147.53,38.44238328]
[1641638553228,8.0,147.6,147.53,38.44238328]
[1641638553529,8.0,147.6,147.53,34.44238328]
[1641638557032,8.0,147.6,147.53,91.48345715]
[1641638558634,8.0,147.6,147.54,57.04107387]
[1641638559234,8.0,147.6,147.55,4.0]
[1641638559436,0.0001,147.6,147.56,6.77598591]
[1641638559635,27.66479,147.61,147.56,6.77598591]
[1641638560041,27.66479,147.61,147.56,5.77598591]
[1641638560237,27.66479,147.61,147.55,8.574]
[1641638560437,9.98,147.62,147.56,57.04107387]
[1641638560639,9.98,147.62,147.57,27.66479]
[1641638561042,9.98,147.62,147.57,21.22479]
[1641638561243,9.98,147.62,147.57,78.26586387]
[1641638561441,9.98,147.62,147.57,72.26586387]
[1641638562242,9.98,147.62,147.57,15.22479]
[1641638563743,9.98,147.62,147.57,7.22479]
[1641638563945,9.98,147.62,147.59,38.33762602]
[1641638564144,8.0,147.61,147.59,28.97762602]
[1641638564343,8.0,147.61,147.59,20.97762602]
[1641638564543,8.0,147.61,147.59,12.97762602]
[1641638564742,8.0,147.61,147.55,33.60784318]
[1641638564944,8.0,147.61,147.53,17.66479]
[1641638567847,8.0,147.61,147.53,13.30479]
[1641638568746,27.66479,147.6,147.53,13.30479]
[1641638568947,27.66479,147.6,147.53,4.00479]
[1641638569147,27.66479,147.6,147.5,21.22809212]
[1641638569350,8.0,147.59,147.5,21.22809212]
[1641638569748,8.0,147.59,147.5,11.00809212]
[1641638570149,8.0,147.59,147.51,94.59434923]
[1641638570748,27.66479,147.57,147.51,94.59434923]
[1641638570947,27.66479,147.57,147.51,57.61434923]
[1641638571149,27.66479,147.57,147.49,19.87640923]
[1641638571348,27.66479,147.57,147.49,4.08450135]
[1641638571949,27.66479,147.57,147.48,64.9224]
[1641638572149,27.66479,147.57,147.48,63.96250098]
[1641638572351,37.03284492,147.57,147.48,9.20010098]
[1641638572551,37.03284492,147.57,147.45,69.8762]
[1641638572755,27.66479,147.5,147.45,69.8762]
[1641638572954,27.66479,147.5,147.45,4.0]
[1641638573755,34.05079,147.5,147.42,1.30583021]
[1641638573953,34.05079,147.5,147.4,86.18742021]
[1641638574352,34.05079,147.5,147.4,58.52263021]
[1641638574553,34.05079,147.5,147.4,51.70263021]
[1641638574753,27.66479,147.45,147.4,6.78218997]
[1641638575757,27.66479,147.45,147.42,57.4336737]
[1641638576155,3.59076235,147.45,147.42,57.4336737]
[1641638576554,27.66479,147.5,147.44,48.2936737]
[1641638576754,55.32958,147.5,147.44,48.2936737]
[1641638577257,55.32958,147.5,147.4,6.78218997]
[1641638577856,55.32958,147.5,147.38,66.6492]
[1641638578058,55.32958,147.5,147.38,73.43231006]
[1641638578256,71.89058,147.5,147.38,73.43231006]
[1641638578456,4.0,147.46,147.38,66.6492]
[1641638578657,6.012,147.47,147.37,17.58479]
[1641638578858,27.66479,147.43,147.36,71.77260028]
[1641638579056,27.66479,147.43,147.33,180.98916143]
[1641638579356,27.66479,147.43,147.32,27.66479]
[1641638580157,27.66479,147.43,147.35,6.78449065]
[1641638581758,27.66479,147.43,147.36,95.50797377]
[1641638582059,27.66479,147.43,147.36,85.28797377]
[1641638582460,27.66479,147.43,147.38,6.78311006]
[1641638582659,27.66479,147.43,147.36,5.464]
[1641638583059,17.37297511,147.49,147.36,5.464]
[1641638583761,17.37297511,147.49,147.36,12.24757019]
[1641638584362,6.51222276,147.42,147.36,12.24757019]
[1641638584961,7.81220683,147.47,147.4,6.78173002]
[1641638585165,38.04479,147.5,147.4,14.40873002]
[1641638585166,10.38,147.5,147.4,14.40873002]
[1641638586562,10.38,147.5,147.39,25.34652002]
[1641638586764,10.38,147.5,147.48,37.30120223]
[1641638586960,27.66479,147.49,147.48,37.30120223]
[1641638588163,27.66479,147.49,147.44,57.26002165]
[1641638588365,10.38,147.5,147.47,57.26002165]
[1641638588963,10.38,147.5,147.48,57.26002165]
[1641638590165,26.12914944,147.57,147.48,57.26002165]
[1641638590166,19.34810923,147.57,147.48,57.26002165]
[1641638590365,9.98,147.57,147.48,64.03738526]
[1641638590568,6.50621585,147.56,147.48,64.03738526]
[1641638590766,6.50621585,147.56,147.52,57.26002165]
[1641638590968,6.50621585,147.56,147.52,63.91202165]
[1641638591967,6.50621585,147.56,147.54,57.26002165]
[1641638592867,6.50621585,147.56,147.55,57.26002165]
[1641638593472,4.0,147.56,147.52,4.24112713]
[1641638593668,7.80753818,147.55,147.5,103.37279653]
[1641638593869,1.40155838,147.57,147.51,95.5044631]
[1641638594369,1.40155838,147.57,147.46,6.77828238]
[1641638594768,1.40155838,147.57,147.44,6.77943121]
[1641638594968,27.66479,147.56,147.47,27.66479]
[1641638598973,6.50676641,147.54,147.48,6.77759328]
[1641638599272,6.50676641,147.54,147.48,12.93659328]
[1641638599973,27.66479,147.56,147.48,12.93659328]
[1641638600173,7.80481829,147.61,147.52,6.77575634]
[1641638600375,7.80481829,147.61,147.52,14.42975634]
[1641638600575,17.82481829,147.61,147.52,14.42975634]
[1641638600773,17.82481829,147.61,147.55,6.77414984]
[1641638600973,17.82481829,147.61,147.57,27.66479]
[1641638601374,27.66479,147.67,147.57,27.66479]
[1641638605974,27.66479,147.67,147.57,17.40479]
[1641638606174,27.66479,147.67,147.57,7.06479]
[1641638606575,6.50280049,147.63,147.57,7.06479]
[1641638607175,6.50280049,147.63,147.57,64.35816324]
[1641638608377,6.50280049,147.63,147.59,57.29337324]
[1641638609176,5.4200635,147.6,147.59,57.29337324]
[1641638609376,5.4200635,147.6,147.57,64.35816324]
[1641638610476,6.50424368,147.6,147.57,63.91913161]
[1641638611476,6.50424368,147.6,147.57,57.29337324]
[1641638611678,6.50424368,147.6,147.56,70.14470315]
[1641638612478,6.50424368,147.6,147.56,57.29337324]
[1641638612678,6.50424368,147.6,147.57,57.29337324]
[1641638612877,27.66479,147.67,147.57,57.29337324]
[1641638613076,1.053446,147.75,147.66,62.0986858]
[1641638613277,69.7537,147.86,147.66,62.0986858]
[1641638613477,4.0,147.84,147.67,1.691]
[1641638613677,24.57186656,147.85,147.67,1.691]
[1641638614579,4.0,147.83,147.67,1.691]
[1641638614779,4.0,147.83,147.79,57.29337324]
[1641638615177,4.0,147.83,147.8,27.66479]
[1641638615779,5.41270715,147.81,147.8,84.95816324]
[1641638615979,124.70918964,147.89,147.8,84.95816324]
[1641638616178,4.0,147.9,147.8,84.95816324]
[1641638616380,4.0,147.88,147.8,39.02424207]
[1641638616579,4.0,147.86,147.8,11.35945207]
[1641638616779,4.0,147.84,147.8,11.35945207]
[1641638617179,4.0,147.84,147.82,14.21155166]
[1641638617782,5.76797537,147.79,147.76,12.85138198]
[1641638617981,8.156,147.8,147.76,12.85138198]
[1641638618181,8.156,147.8,147.77,14.19180054]
[1641638618381,6.49645909,147.78,147.77,14.19180054]
[1641638619083,6.49645909,147.78,147.75,27.66479]
[1641638619286,6.49645909,147.78,147.75,23.66479]
[1641638621185,6.49645909,147.78,147.73,27.66479]
[1641638621388,6.49645909,147.78,147.73,16.90479]
[1641638621586,6.49863221,147.73,147.7,27.66479]
[1641638622788,6.49901666,147.72,147.7,27.66479]
[1641638623590,6.49863221,147.73,147.7,21.16432102]
[1641638623791,6.49863221,147.73,147.65,15.10208898]
[1641638624192,6.49863221,147.73,147.68,10.27142298]
[1641638624895,7.79947196,147.71,147.68,10.27142298]
[1641638625094,7.79947196,147.71,147.65,37.88123432]
[1641638625994,7.79947196,147.71,147.63,48.1526573]
[1641638626797,7.79947196,147.71,147.65,37.88123432]
[1641638627796,7.79947196,147.71,147.63,48.1526573]
[1641638628496,14.96247196,147.71,147.63,48.1526573]
[1641638629298,6.50242976,147.64,147.63,48.1526573]
[1641638630498,6.50242976,147.64,147.63,10.27142298]
[1641638630700,7.79947196,147.71,147.63,10.27142298]
[1641638631700,7.79947196,147.71,147.65,38.08187925]
[1641638632801,7.79947196,147.71,147.66,38.08187925]
[1641638633601,7.79947196,147.71,147.7,38.08187925]
[1641638634502,4.79947196,147.71,147.7,38.08187925]
[1641638634702,27.66479,147.72,147.7,30.28113652]
[1641638635109,27.66479,147.72,147.7,33.29406425]
[1641638635906,37.92479,147.73,147.7,40.94306425]
[1641638636105,10.26,147.73,147.7,37.93013652]
[1641638636906,10.26,147.73,147.7,7.649]
[1641638637107,10.26,147.73,147.71,3.01292773]
[1641638638107,10.26,147.73,147.68,108.78881381]
[1641638639007,10.26,147.73,147.7,57.18889735]
[1641638640010,91.23919,147.78,147.71,57.18889735]
[1641638640410,7.79647969,147.76,147.71,85.85354901]
[1641638641714,7.79647969,147.76,147.7,57.18889735]
[1641638641913,7.79647969,147.76,147.7,47.18889735]
[1641638642314,4.0,147.74,147.7,41.18889735]
[1641638642513,17.11847969,147.76,147.7,31.18889735]
[1641638642716,17.11847969,147.76,147.71,3.01292773]
[1641638643015,4.0,147.75,147.7,11.20182508]
[1641638643216,4.0,147.75,147.7,6.20182508]
[1641638643417,27.66479,147.72,147.65,95.5044631]
[1641638643616,33.43679,147.72,147.65,70.55801211]
[1641638644015,7.79970148,147.7,147.65,70.55801211]
[1641638644217,7.79970148,147.7,147.64,26.75999192]
[1641638645117,7.79970148,147.7,147.64,17.51999192]
[1641638645321,7.79970148,147.7,147.64,6.76933491]
[1641638646318,7.79976911,147.7,147.64,6.76933491]
[1641638646719,27.66479,147.72,147.64,6.76933491]
[1641638648920,27.66479,147.72,147.63,27.66479]
[1641638649319,4.0,147.71,147.63,27.66479]
[1641638649521,27.66479,147.69,147.63,18.12479]
[1641638649720,27.66479,147.69,147.62,10.75065701]
[1641638650121,27.66479,147.69,147.61,27.66479]
[1641638651723,27.66479,147.69,147.57,66.3935]
[1641638652124,7.80111868,147.68,147.57,66.3935]
[1641638653025,7.80111868,147.68,147.6,95.79485259]
[1641638653425,7.80111868,147.68,147.64,27.66479]
[1641638653625,10.22,147.72,147.64,27.66479]
[1641638654229,10.32,147.76,147.64,27.66479]
[1641638654428,10.32,147.76,147.67,6.76773146]
[1641638655931,10.32,147.76,147.7,4.0]
[1641638656337,10.12,147.8,147.78,37.74382814]
[1641638656932,10.12,147.8,147.75,119.270149]
[1641638657231,10.12,147.8,147.68,65.5185]
[1641638657232,5.76888624,147.77,147.68,65.5185]
[1641638657432,14.05388624,147.77,147.68,65.5185]
[1641638657633,8.285,147.77,147.72,119.57085957]
[1641638658633,8.285,147.77,147.76,57.37668477]
[1641638659635,39.57990623,147.79,147.76,57.37668477]
[1641638660837,39.57990623,147.79,147.75,57.37668477]
[1641638661039,7.79559942,147.78,147.75,57.37668477]
[1641638661241,7.79559942,147.78,147.75,47.89668477]
[1641638661639,7.79559942,147.78,147.69,37.64700937]
[1641638662442,7.79559942,147.78,147.69,31.64700937]
[1641638663342,7.79559942,147.78,147.69,22.28600326]
[1641638663643,7.79667509,147.76,147.68,27.66479]
[1641638663844,13.74167509,147.76,147.68,27.66479]
[1641638664042,13.74167509,147.76,147.69,9.47076382]
[1641638664641,7.79926757,147.71,147.69,9.47076382]
[1641638664841,14.30026757,147.71,147.69,9.47076382]
[1641638666043,14.30026757,147.71,147.65,6.35076382]
[1641638666244,0.08408188,147.71,147.65,6.35076382]
[1641638667447,0.08408188,147.71,147.64,6.35076382]
[1641638667646,27.66479,147.74,147.66,27.66479]
[1641638668448,27.66479,147.74,147.67,6.35076382]
[1641638669247,27.66479,147.74,147.64,125.9162578]
[1641638670250,27.66479,147.74,147.64,129.9162578]
[1641638670751,27.66479,147.74,147.64,125.9162578]
[1641638671554,35.46265055,147.74,147.72,57.42186227]
[1641638671750,7.79786055,147.74,147.72,57.42186227]
[1641638671951,7.79786055,147.74,147.73,57.42186227]
[1641638672554,11.79786055,147.74,147.73,57.42186227]
[1641638672752,11.79786055,147.74,147.64,125.9162578]
[1641638672753,11.79786055,147.74,147.71,57.42834484]
[1641638672954,11.79786055,147.74,147.71,46.64834484]
[1641638673153,7.79786055,147.74,147.71,46.64834484]
[1641638673353,27.03347376,147.74,147.71,46.64834484]
[1641638673553,27.03347376,147.74,147.64,6.35076382]
[1641638673756,54.69826376,147.74,147.72,2.35076382]
[1641638674255,35.46265055,147.74,147.72,2.35076382]
[1641638674955,35.46265055,147.74,147.72,36.08470155]
[1641638675756,35.46265055,147.74,147.67,95.71175386]
[1641638679260,35.46265055,147.74,147.68,91.33175386]
[1641638679459,35.46265055,147.74,147.68,90.21175386]
[1641638679862,39.46265055,147.74,147.68,90.21175386]
[1641638680060,7.80037546,147.69,147.66,27.66479]
[1641638680260,16.49237546,147.69,147.66,26.64479]
[1641638681362,7.80037546,147.69,147.66,26.64479]
[1641638682364,14.89337546,147.69,147.64,5.25803851]
[1641638682563,7.8015811,147.67,147.63,45.16883177]
[1641638682962,7.8015811,147.67,147.63,22.28600326]
[1641638683764,7.8015811,147.67,147.63,57.48146686]
[1641638684763,7.8015811,147.67,147.62,57.48146686]
[1641638685562,7.8015811,147.67,147.64,57.48146686]
[1641638685763,1.22213681,147.67,147.64,57.48146686]
[1641638685964,45.11779,147.69,147.65,54.48146686]
[1641638686165,38.02479,147.69,147.65,54.48146686]
[1641638686764,38.02479,147.69,147.6,27.66479]
[1641638688565,38.02479,147.69,147.61,2.06125927]
[1641638689366,38.02479,147.69,147.63,95.82364937]
[1641638691370,7.80065292,147.68,147.63,95.82364937]
[1641638692571,7.80065292,147.68,147.63,94.12364937]
[1641638692773,7.80065292,147.68,147.64,2.06125927]
[1641638693676,7.80065292,147.68,147.63,94.12364937]
[1641638694474,7.80065292,147.68,147.61,10.64574995]
[1641638695873,7.80065292,147.68,147.61,14.64574995]
[1641638696074,7.80065292,147.68,147.65,27.66479]
[1641638696975,7.80065292,147.68,147.66,10.64574995]
[1641638697277,1.36168309,147.69,147.66,10.64574995]
[1641638697475,6.500874,147.68,147.67,2.06125927]
[1641638698375,1.36168309,147.69,147.66,8.58449068]
[1641638698676,1.16212151,147.69,147.66,8.58449068]
[1641638700278,1.16212151,147.69,147.67,2.07085871]
[1641638702483,1.16212151,147.69,147.66,4.88377035]
[1641638702682,1.16212151,147.69,147.65,95.94671867]
[1641638703784,6.50184522,147.66,147.65,95.94671867]
[1641638704585,7.80163159,147.67,147.65,73.44349235]
[1641638705085,7.80163159,147.67,147.61,22.28600326]
[1641638705086,7.80163159,147.67,147.61,35.08228356]